[Event "56th Biel Festival MTO 2023"]
[White "Aryan Chopra"]
[Black "Licznerski,Lukasz"]
[Site "Biel"]
[Round "5.5"]
[Annotator "RC"]
[Result "1-0"]
[Date "2023.07.21"]
[WhiteElo "2626"]
[BlackElo "2430"]
[PlyCount "105"]
[TimeControl "60"]

1. e4 {[%emt 0:0:0]} e5 {[%emt 0:0:0]} 2. Nf3 {[%emt 0:0:0]} Nc6 {[%emt 0:0:0]} 3. Bc4 {[%emt 0:0:0]} Nf6 {[%emt 0:0:0]} 4. Ng5 {[%emt 0:0:0]} d5 {[%emt 0:0:0]} 5. exd5 {[%emt 0:0:0]} Na5 {[%emt 0:0:0]} 6. Bb5+ {[%emt 0:0:0]} c6 {[%emt 0:0:0]} 7. dxc6 {[%emt 0:0:0]} bxc6 {[%emt 0:0:0]} 8. Be2 {[%emt 0:0:0]} h6 {[%emt 0:0:0]} 9. Nh3 {[%emt 0:0:0]} Bc5 {[%emt 0:3:4]} 10. d3 {[%emt 0:0:0]} O-O {[%emt 0:0:31]} 11. O-O {[%emt 0:0:0]} Nb7 {[%emt 0:12:9]} 12. Nc3 {[%emt 0:0:0]} Bb6 {[%emt 0:7:13]} 13. Kh1 {[%emt 0:0:0]} Nd6 {[%emt 0:3:5]} 14. Ng1 {[%emt 0:0:0]} Bf5 {[%emt 0:4:35]} 15. Na4 {[%emt 0:20:4]} Bc7 {[%emt 0:0:16]} 16. c4 {[%emt 0:8:27]} Bh7 {[%emt 0:12:6]} 17. b3 {[%emt 0:14:41]} e4 {[%emt 0:6:29]} 18. dxe4 {[%emt 0:14:57]} Nfxe4 {[%emt 0:2:14]} 19. Nf3 {[%emt 0:1:59]} Qe7 {[%emt 0:5:31]} 20. Ba3 {[%emt 0:2:49]} Rad8 {[%emt 0:3:35]} 21. Qd4 {[%emt 0:8:39]} Bb8 {[%emt 0:3:39]} 22. Qb2 {[%emt 0:3:7]} Rfe8 {[%emt 0:0:54]} 23. Rae1 {[%emt 0:4:25]} Qc7 {[%emt 0:2:41]} 24. g3 {[%emt 0:0:10]} Qc8 {[%emt 0:2:6]} 25. Bd1 {[%emt 0:4:2]} Nf6 {[%emt 0:9:25]} 26. Rxe8+ {[%emt 0:5:45]} Rxe8 {[%emt 0:4:43]} 27. Kg2 {[%emt 0:7:4]} Nde4 {[%emt 0:7:32]} 28. Re1 {[%emt 0:0:4]} Ng4 {[%emt 0:3:43]} 29. Bc5 {[%emt 0:0:5]} Nxc5 {[%emt 0:2:52]} 30. Rxe8+ {[%emt 0:0:4]} Qxe8 {[%emt 0:0:2]} 31. Nxc5 {[%emt 0:0:2]} Nf6 {[%emt 0:7:2]} 32. Bc2 {[%emt 0:1:0]} Bxc2 {[%emt 0:0:6]} 33. Qxc2 {[%emt 0:0:1]} Bd6 {[%emt 0:0:37]} 34. Na4 {[%emt 0:0:8]} Bf8 {[%emt 0:0:45]} 35. Qd3 {[%emt 0:0:59]} h5 {[%emt 0:0:29]} 36. Qd4 {[%emt 0:3:8]} a5 {[%emt 0:0:1]} 37. Qe5 {[%emt 0:1:43]} Qd8 {[%emt 0:0:17]} 38. Nd4 {[%emt 0:0:27]} Bd6 {[%emt 0:1:12]} 39. Qe3 {[%emt 0:4:27]} Qd7 {[%emt 0:0:8]} 40. Qf3 {[%emt 0:1:26]} Bxg3 {[%emt 0:0:56]} 41. Nxc6 {[%emt 0:0:0]} Bc7 {[%emt 0:0:0]} 42. Nc3 {[%emt 0:0:0]} Qd6 {[%emt 0:0:0]} 43. h3 {[%emt 0:0:0]} Qd2 {[%emt 0:0:0]} 44. Qe3 {[%emt 0:0:0]} Qd6 {[%emt 0:0:0]} 45. Ne7+ {[%emt 0:0:0]} Kh7 {[%emt 0:0:0]} 46. c5 {[%emt 0:0:0]} Qh2+ {[%emt 0:2:57]} 47. Kf1 {[%emt 0:0:0]} Be5 {[%emt 0:8:16]} 48. c6 {[%emt 0:4:15]} g5 {[%emt 0:6:2]} 49. Ke2 {[%emt 0:8:23]} g4 {[%emt 0:2:13]} 50. Ne4 {[%emt 0:2:1]} Nxe4 {[%emt 0:5:19]} 51. Qxe4+ {[%emt 0:0:4]} Kh6 {[%emt 0:0:55]} 52. hxg4 {[%emt 0:1:6]} h4 {[%emt 0:0:17]} 53. g5+ {[%emt 0:1:7]} 1-0

[Event "56th Biel Festival MTO 2023"]
[White "Albornoz Cabrera,Carlos Daniel"]
[Black "Huang,Renjie"]
[Site "Biel"]
[Round "5.6"]
[Annotator "RC"]
[Result "1/2-1/2"]
[Date "2023.07.21"]
[WhiteElo "2591"]
[BlackElo "2445"]
[PlyCount "141"]
[TimeControl "60"]

1. e4 {[%emt 0:0:0]} c5 {[%emt 0:0:0]} 2. Nf3 {[%emt 0:0:0]} e6 {[%emt 0:0:0]} 3. d4 {[%emt 0:0:0]} cxd4 {[%emt 0:0:0]} 4. Nxd4 {[%emt 0:0:0]} Nf6 {[%emt 0:0:0]} 5. Nc3 {[%emt 0:0:0]} Nc6 {[%emt 0:0:0]} 6. Nxc6 {[%emt 0:0:0]} bxc6 {[%emt 0:0:0]} 7. e5 {[%emt 0:0:0]} Nd5 {[%emt 0:0:0]} 8. Ne4 {[%emt 0:0:0]} Bb7 {[%emt 0:0:0]} 9. Be2 {[%emt 0:0:0]} c5 {[%emt 0:0:0]} 10. O-O {[%emt 0:0:0]} Qc7 {[%emt 0:0:0]} 11. Nd6+ {[%emt 0:0:0]} Bxd6 {[%emt 0:0:0]} 12. exd6 {[%emt 0:0:0]} Qc6 {[%emt 0:0:0]} 13. f3 {[%emt 0:0:0]} e5 {[%emt 0:0:0]} 14. c4 {[%emt 0:0:0]} Nf4 {[%emt 0:0:0]} 15. Bxf4 {[%emt 0:0:0]} exf4 {[%emt 0:0:0]} 16. Qd2 {[%emt 0:0:0]} O-O {[%emt 0:0:0]} 17. Bd3 {[%emt 0:1:0]} Rae8 {[%emt 0:0:0]} 18. Rfe1 {[%emt 0:16:14]} Re3 {[%emt 0:0:0]} 19. Rxe3 {[%emt 0:3:2]} fxe3 {[%emt 0:0:0]} 20. Qxe3 {[%emt 0:0:7]} Qxd6 {[%emt 0:0:0]} 21. Rd1 {[%emt 0:4:15]} Qb6 {[%emt 0:0:0]} 22. b3 {[%emt 0:12:59]} g6 {[%emt 0:0:0]} 23. h4 {[%emt 0:5:37]} h5 {[%emt 0:0:0]} 24. Qe7 {[%emt 0:4:23]} d5 {[%emt 0:8:19]} 25. Re1 {[%emt 0:5:13]} Ba6 {[%emt 0:1:29]} 26. Re5 {[%emt 0:5:33]} Qd8 {[%emt 0:4:39]} 27. Bf1 {[%emt 0:20:17]} dxc4 {[%emt 0:5:1]} 28. Qxd8 {[%emt 0:0:4]} Rxd8 {[%emt 0:0:4]} 29. bxc4 {[%emt 0:0:7]} Rd2 {[%emt 0:1:36]} 30. a4 {[%emt 0:0:27]} Ra2 {[%emt 0:0:5]} 31. Rxc5 {[%emt 0:0:8]} Rxa4 {[%emt 0:0:5]} 32. Kf2 {[%emt 0:0:50]} Bb7 {[%emt 0:4:33]} 33. Ke3 {[%emt 0:2:42]} a5 {[%emt 0:1:30]} 34. Kd4 {[%emt 0:4:56]} Kg7 {[%emt 0:1:55]} 35. Rc7 {[%emt 0:2:45]} Ba6 {[%emt 0:0:19]} 36. Bd3 {[%emt 0:7:7]} Ra2 {[%emt 0:3:26]} 37. Be4 {[%emt 0:2:48]} Rxg2 {[%emt 0:0:36]} 38. Bd5 {[%emt 0:0:15]} Rh2 {[%emt 0:0:22]} 39. Rxf7+ {[%emt 0:1:1]} Kh6 {[%emt 0:0:4]} 40. Rf6 {[%emt 0:2:43]} Bc8 {[%emt 0:0:17]} 41. Be4 {[%emt 0:31:41]} Rg2 {[%emt 0:30:15]} 42. Ke5 {[%emt 0:0:0]} Kg7 {[%emt 0:0:0]} 43. Rc6 {[%emt 0:0:0]} Bf5 {[%emt 0:0:0]} 44. Bxf5 {[%emt 0:0:0]} gxf5 {[%emt 0:0:0]} 45. Kxf5 {[%emt 0:0:0]} Rg3 {[%emt 0:0:0]} 46. f4 {[%emt 0:0:0]} Rg4 {[%emt 0:0:0]} 47. Rc7+ {[%emt 0:0:0]} Kh6 {[%emt 0:0:0]} 48. Rc6+ {[%emt 0:0:0]} Kg7 {[%emt 0:0:0]} 49. Rc7+ {[%emt 0:0:0]} Kh6 {[%emt 0:0:0]} 50. Ra7 {[%emt 0:0:0]} Rxh4 {[%emt 0:0:0]} 51. Ra6+ {[%emt 0:0:0]} Kg7 {[%emt 0:0:0]} 52. Rxa5 {[%emt 0:0:0]} Rh1 {[%emt 0:0:0]} 53. Ra7+ {[%emt 0:0:0]} Kh6 {[%emt 0:0:0]} 54. Ra6+ {[%emt 0:0:0]} Kg7 {[%emt 0:0:0]} 55. Ra7+ {[%emt 0:8:21]} Kh6 {[%emt 0:0:0]} 56. Ra5 {[%emt 0:2:5]} h4 {[%emt 0:0:0]} 57. c5 {[%emt 0:0:42]} h3 {[%emt 0:0:0]} 58. Ra3 {[%emt 0:1:29]} Rc1 {[%emt 0:0:0]} 59. Rxh3+ {[%emt 0:0:10]} Kg7 {[%emt 0:0:0]} 60. Ke6 {[%emt 0:0:41]} Rxc5 {[%emt 0:0:0]} 61. Rg3+ {[%emt 0:0:24]} Kf8 {[%emt 0:0:0]} 62. Ra3 {[%emt 0:0:0]} Rc6+ {[%emt 0:0:0]} 63. Kf5 {[%emt 0:0:0]} Rc5+ {[%emt 0:0:0]} 64. Kg6 {[%emt 0:0:0]} Rc6+ {[%emt 0:0:0]} 65. Kg5 {[%emt 0:0:0]} Rc5+ {[%emt 0:0:0]} 66. f5 {[%emt 0:0:0]} Rc6 {[%emt 0:0:0]} 67. Ra7 {[%emt 0:0:0]} Rb6 {[%emt 0:0:0]} 68. Rh7 {[%emt 0:0:0]} Ra6 {[%emt 0:0:0]} 69. Rh6 {[%emt 0:0:0]} Rxh6 {[%emt 0:0:0]} 70. Kxh6 {[%emt 0:0:0]} Kf7 {[%emt 0:0:0]} 71. f6 {[%emt 0:0:0]} 1/2-1/2

[Event "56th Biel Festival MTO 2023"]
[White "Muthaiah AL"]
[Black "Quesada Perez,Luis Ernesto"]
[Site "Biel"]
[Round "5.7"]
[Annotator "RC"]
[Result "1/2-1/2"]
[Date "2023.07.21"]
[WhiteElo "2445"]
[BlackElo "2553"]
[PlyCount "59"]
[TimeControl "60"]

1. d4 {[%emt 0:0:0]} Nf6 {[%emt 0:0:0]} 2. Bf4 {[%emt 0:0:0]} d6 {[%emt 0:0:0]} 3. Nc3 {[%emt 0:0:0]} Nbd7 {[%emt 0:0:0]} 4. Nf3 {[%emt 0:0:0]} c5 {[%emt 0:0:0]} 5. d5 {[%emt 0:0:0]} b5 {[%emt 0:0:0]} 6. Nxb5 {[%emt 0:0:0]} Qa5+ {[%emt 0:0:0]} 7. Nc3 {[%emt 0:0:0]} Rb8 {[%emt 0:0:0]} 8. Bd2 {[%emt 0:9:49]} Rxb2 {[%emt 0:0:0]} 9. e4 {[%emt 0:0:46]} g6 {[%emt 0:0:0]} 10. a4 {[%emt 0:16:17]} Bh6 {[%emt 0:2:0]} 11. Bb5 {[%emt 0:30:6]} Bxd2+ {[%emt 0:1:52]} 12. Qxd2 {[%emt 0:0:14]} O-O {[%emt 0:0:9]} 13. O-O {[%emt 0:2:20]} a6 {[%emt 0:7:2]} 14. Bd3 {[%emt 0:9:49]} Bb7 {[%emt 0:18:25]} 15. Nd1 {[%emt 0:13:7]} Rb4 {[%emt 0:0:21]} 16. Ne3 {[%emt 0:0:16]} Rb8 {[%emt 0:7:28]} 17. Nc4 {[%emt 0:7:34]} Qc7 {[%emt 0:0:51]} 18. Rfe1 {[%emt 0:1:36]} Nb6 {[%emt 0:7:0]} 19. Nxb6 {[%emt 0:0:27]} Rxb6 {[%emt 0:0:2]} 20. a5 {[%emt 0:1:8]} Rb2 {[%emt 0:0:12]} 21. Qc1 {[%emt 0:1:19]} Bc8 {[%emt 0:0:52]} 22. Nd2 {[%emt 0:0:6]} c4 {[%emt 0:2:31]} 23. Nxc4 {[%emt 0:0:24]} R2b5 {[%emt 0:0:11]} 24. Nb6 {[%emt 0:2:0]} Rc5 {[%emt 0:1:5]} 25. c4 {[%emt 0:0:58]} Nd7 {[%emt 0:0:34]} 26. Nxd7 {[%emt 0:0:12]} Bxd7 {[%emt 0:0:2]} 27. Qa3 {[%emt 0:1:4]} e5 {[%emt 0:0:16]} 28. dxe6 {[%emt 0:1:37]} Bxe6 {[%emt 0:0:17]} 29. Red1 {[%emt 0:0:32]} h5 {[%emt 0:2:30]} 30. h3 {[%emt 0:0:18]} 1/2-1/2

[Event "56th Biel Festival MTO 2023"]
[White "Ajay Krishna,S."]
[Black "Rodrigue-Lemieux,Shawn"]
[Site "Biel"]
[Round "5.8"]
[Annotator "RC"]
[Result "0-1"]
[Date "2023.07.21"]
[WhiteElo "2390"]
[BlackElo "2495"]
[PlyCount "76"]
[TimeControl "60"]

1. Nf3 {[%emt 0:0:0]} d5 {[%emt 0:0:0]} 2. d4 {[%emt 0:0:0]} Nf6 {[%emt 0:0:0]} 3. c3 {[%emt 0:0:0]} c5 {[%emt 0:0:0]} 4. dxc5 {[%emt 0:0:0]} e6 {[%emt 0:0:0]} 5. b4 {[%emt 0:0:0]} a5 {[%emt 0:0:0]} 6. Nbd2 {[%emt 0:0:0]} b6 {[%emt 0:1:26]} 7. cxb6 {[%emt 0:0:47]} axb4 {[%emt 0:0:13]} 8. cxb4 {[%emt 0:1:30]} Qxb6 {[%emt 0:3:27]} 9. a3 {[%emt 0:5:7]} Bxb4 {[%emt 0:1:20]} 10. Rb1 {[%emt 0:0:11]} Bxd2+ {[%emt 0:0:14]} 11. Bxd2 {[%emt 0:0:5]} Qc7 {[%emt 0:0:38]} 12. e3 {[%emt 0:5:34]} O-O {[%emt 0:3:34]} 13. Bb4 {[%emt 0:5:49]} Re8 {[%emt 0:5:31]} 14. Be2 {[%emt 0:6:47]} e5 {[%emt 0:20:29]} 15. O-O {[%emt 0:6:24]} Nc6 {[%emt 0:5:18]} 16. Qc2 {[%emt 0:4:13]} Ba6 {[%emt 0:4:23]} 17. Rfc1 {[%emt 0:11:35]} Bxe2 {[%emt 0:4:52]} 18. Qxc6 {[%emt 0:1:36]} Qd8 {[%emt 0:10:40]} 19. Qc7 {[%emt 0:16:34]} d4 {[%emt 0:0:11]} 20. exd4 {[%emt 0:5:24]} exd4 {[%emt 0:0:30]} 21. Qxd8 {[%emt 0:6:53]} Raxd8 {[%emt 0:0:4]} 22. Nd2 {[%emt 0:0:11]} Nd5 {[%emt 0:0:49]} 23. Nb3 {[%emt 0:2:58]} Bd3 {[%emt 0:4:2]} 24. Rb2 {[%emt 0:2:48]} Nc3 {[%emt 0:0:28]} 25. Ra1 {[%emt 0:2:16]} Ne2+ {[%emt 0:1:39]} 26. Kh1 {[%emt 0:0:19]} Bc4 {[%emt 0:0:4]} 27. h3 {[%emt 0:2:55]} g5 {[%emt 0:1:29]} 28. Kh2 {[%emt 0:1:17]} g4 {[%emt 0:3:18]} 29. Re1 {[%emt 0:2:46]} d3 {[%emt 0:1:3]} 30. Na5 {[%emt 0:0:41]} Bd5 {[%emt 0:6:50]} 31. Rd1 {[%emt 0:5:51]} Ba8 {[%emt 0:3:52]} 32. Nc4 {[%emt 0:1:58]} Rd4 {[%emt 0:3:22]} 33. Ne3 {[%emt 0:1:6]} g3+ {[%emt 0:1:6]} 34. fxg3 {[%emt 0:0:10]} Rxe3 {[%emt 0:0:5]} 35. Bc5 {[%emt 0:0:7]} Bc6 {[%emt 0:2:13]} 36. Rdd2 {[%emt 0:2:3]} Rxg3 {[%emt 0:3:8]} 37. Rxe2 {[%emt 0:0:42]} dxe2 {[%emt 0:0:22]} 38. Rxe2 {[%emt 0:0:17]} Rdd3 {[%emt 0:0:43]} 0-1

[Event "56th Biel Festival MTO 2023"]
[White "Peng,Xiongjian"]
[Black "Vantika Agrawal"]
[Site "Biel"]
[Round "5.9"]
[Annotator "RC"]
[Result "0-1"]
[Date "2023.07.21"]
[WhiteElo "2489"]
[BlackElo "2428"]
[PlyCount "144"]
[TimeControl "60"]

1. Nf3 {[%emt 0:0:0]} Nf6 {[%emt 0:0:0]} 2. g3 {[%emt 0:0:0]} g6 {[%emt 0:0:0]} 3. b3 {[%emt 0:0:0]} Bg7 {[%emt 0:0:0]} 4. Bb2 {[%emt 0:0:0]} d6 {[%emt 0:0:0]} 5. d4 {[%emt 0:0:0]} c5 {[%emt 0:0:0]} 6. dxc5 {[%emt 0:0:0]} Qa5+ {[%emt 0:0:0]} 7. Nbd2 {[%emt 0:0:0]} dxc5 {[%emt 0:11:59]} 8. Bg2 {[%emt 0:0:0]} O-O {[%emt 0:1:39]} 9. O-O {[%emt 0:0:48]} Nc6 {[%emt 0:3:34]} 10. Qc1 {[%emt 0:25:37]} Rd8 {[%emt 0:10:8]} 11. Rd1 {[%emt 0:8:33]} Qc7 {[%emt 0:2:44]} 12. Nf1 {[%emt 0:1:25]} Bf5 {[%emt 0:2:36]} 13. c4 {[%emt 0:13:12]} Rxd1 {[%emt 0:21:8]} 14. Qxd1 {[%emt 0:0:4]} Rd8 {[%emt 0:0:10]} 15. Qe1 {[%emt 0:0:17]} Be4 {[%emt 0:6:53]} 16. Rd1 {[%emt 0:1:28]} Rxd1 {[%emt 0:5:17]} 17. Qxd1 {[%emt 0:0:6]} Qd8 {[%emt 0:2:20]} 18. Qc1 {[%emt 0:8:27]} Qd6 {[%emt 0:11:33]} 19. N1d2 {[%emt 0:3:31]} Bf5 {[%emt 0:0:53]} 20. h3 {[%emt 0:3:1]} h5 {[%emt 0:7:23]} 21. Qa1 {[%emt 0:4:4]} Bh6 {[%emt 0:3:23]} 22. e3 {[%emt 0:3:31]} Ne4 {[%emt 0:0:50]} 23. Qc1 {[%emt 0:12:15]} Bg7 {[%emt 0:2:11]} 24. Bxg7 {[%emt 0:0:37]} Kxg7 {[%emt 0:0:13]} 25. g4 {[%emt 0:5:29]} hxg4 {[%emt 0:1:5]} 26. hxg4 {[%emt 0:0:19]} Nxd2 {[%emt 0:0:20]} 27. Nxd2 {[%emt 0:0:4]} Bxg4 {[%emt 0:1:52]} 28. Ne4 {[%emt 0:0:15]} Qe5 {[%emt 0:0:46]} 29. f4 {[%emt 0:0:6]} Qf5 {[%emt 0:1:40]} 30. Qa3 {[%emt 0:2:11]} Bh3 {[%emt 0:1:9]} 31. Bh1 {[%emt 0:3:42]} Qg4+ {[%emt 0:1:9]} 32. Kf2 {[%emt 0:0:22]} b6 {[%emt 0:2:14]} 33. Qb2+ {[%emt 0:3:25]} Kg8 {[%emt 0:0:13]} 34. Qd2 {[%emt 0:2:8]} Qd7 {[%emt 0:0:22]} 35. Qc3 {[%emt 0:0:29]} Bf5 {[%emt 0:1:27]} 36. Ng5 {[%emt 0:0:10]} Nb4 {[%emt 0:0:42]} 37. a3 {[%emt 0:0:7]} Qd3 {[%emt 0:0:33]} 38. Qxd3 {[%emt 0:2:10]} Nxd3+ {[%emt 0:0:4]} 39. Kg3 {[%emt 0:0:5]} Nc1 {[%emt 0:0:33]} 40. b4 {[%emt 0:1:16]} Bd3 {[%emt 0:0:27]} 41. bxc5 {[%emt 0:30:27]} bxc5 {[%emt 0:0:0]} 42. Bd5 {[%emt 0:0:0]} e6 {[%emt 0:0:0]} 43. Bc6 {[%emt 0:0:0]} Kf8 {[%emt 0:4:36]} 44. Nf3 {[%emt 0:0:0]} Bxc4 {[%emt 0:4:58]} 45. Ne5 {[%emt 0:0:0]} Ba2 {[%emt 0:2:35]} 46. Bb5 {[%emt 0:0:0]} Bd5 {[%emt 0:8:0]} 47. Nd7+ {[%emt 0:0:0]} Ke7 {[%emt 0:0:0]} 48. Nxc5 {[%emt 0:0:0]} Kd6 {[%emt 0:0:29]} 49. Na6 {[%emt 0:0:0]} Na2 {[%emt 0:1:0]} 50. Bd3 {[%emt 0:0:0]} Nc3 {[%emt 0:1:12]} 51. Kf2 {[%emt 0:0:0]} Nd1+ {[%emt 0:1:56]} 52. Ke2 {[%emt 0:0:0]} Nb2 {[%emt 0:0:55]} 53. Nb4 {[%emt 0:0:0]} Nxd3 {[%emt 0:4:6]} 54. Kxd3 {[%emt 0:0:0]} a5 {[%emt 0:0:15]} 55. Nc2 {[%emt 0:0:0]} e5 {[%emt 0:0:26]} 56. e4 {[%emt 0:0:0]} Bb3 {[%emt 0:1:49]} 57. fxe5+ {[%emt 0:0:0]} Kxe5 {[%emt 0:0:12]} 58. Nd4 {[%emt 0:0:0]} a4 {[%emt 0:2:12]} 59. Ke3 {[%emt 0:0:0]} Bd1 {[%emt 0:1:16]} 60. Nc6+ {[%emt 0:0:0]} Kd6 {[%emt 0:0:13]} 61. Nb4 {[%emt 0:0:0]} g5 {[%emt 0:0:21]} 62. Nd3 {[%emt 0:0:0]} Bc2 {[%emt 0:2:1]} 63. Ne1 {[%emt 0:4:11]} Bb3 {[%emt 0:0:15]} 64. Nd3 {[%emt 0:0:38]} Bc4 {[%emt 0:1:26]} 65. Nf2 {[%emt 0:2:23]} Kc5 {[%emt 0:0:0]} 66. Nd1 {[%emt 0:0:0]} Be6 {[%emt 0:0:0]} 67. Nc3 {[%emt 0:1:49]} Bd7 {[%emt 0:0:0]} 68. Nd5 {[%emt 0:0:34]} Bc6 {[%emt 0:0:1]} 69. Ne7 {[%emt 0:0:32]} Bb5 {[%emt 0:0:30]} 70. Nf5 {[%emt 0:5:7]} Bd7 {[%emt 0:0:23]} 71. Nd4 {[%emt 0:0:28]} Be6 {[%emt 0:1:20]} 72. Nf3 {[%emt 0:0:33]} g4 {[%emt 0:0:35]} 0-1

[Event "56th Biel Festival MTO 2023"]
[White "Wang,Chen"]
[Black "Jain Kashish Manoj"]
[Site "Biel"]
[Round "5.10"]
[Annotator "RC"]
[Result "1-0"]
[Date "2023.07.21"]
[WhiteElo "2477"]
[BlackElo "2375"]
[PlyCount "93"]
[TimeControl "60"]

1. e4 {[%emt 0:0:0]} c5 {[%emt 0:0:0]} 2. Nf3 {[%emt 0:0:0]} d6 {[%emt 0:0:0]} 3. Bb5+ {[%emt 0:0:0]} Nd7 {[%emt 0:0:0]} 4. Ba4 {[%emt 0:0:0]} Ngf6 {[%emt 0:0:0]} 5. O-O {[%emt 0:0:0]} g6 {[%emt 0:2:2]} 6. Qe2 {[%emt 0:0:0]} Bg7 {[%emt 0:0:56]} 7. c3 {[%emt 0:0:0]} O-O {[%emt 0:11:23]} 8. d4 {[%emt 0:0:0]} e5 {[%emt 0:3:19]} 9. dxe5 {[%emt 0:0:0]} dxe5 {[%emt 0:0:49]} 10. c4 {[%emt 0:0:0]} Nb6 {[%emt 0:10:33]} 11. Bb3 {[%emt 0:0:0]} Bg4 {[%emt 0:0:58]} 12. Nc3 {[%emt 0:0:0]} Ne8 {[%emt 0:6:13]} 13. Be3 {[%emt 0:26:53]} Qe7 {[%emt 0:5:51]} 14. Rfd1 {[%emt 0:12:2]} Kh8 {[%emt 0:9:5]} 15. h3 {[%emt 0:5:51]} Bxf3 {[%emt 0:0:29]} 16. Qxf3 {[%emt 0:0:8]} Rc8 {[%emt 0:9:2]} 17. a4 {[%emt 0:32:16]} a5 {[%emt 0:1:8]} 18. Nb5 {[%emt 0:0:21]} Nc7 {[%emt 0:15:23]} 19. Nd6 {[%emt 0:2:42]} Ne6 {[%emt 0:0:13]} 20. Nxc8 {[%emt 0:0:6]} Rxc8 {[%emt 0:0:53]} 21. Qe2 {[%emt 0:0:9]} Nd4 {[%emt 0:4:23]} 22. Bxd4 {[%emt 0:0:17]} cxd4 {[%emt 0:0:14]} 23. c5 {[%emt 0:0:11]} Nd7 {[%emt 0:1:26]} 24. Qb5 {[%emt 0:2:5]} Nxc5 {[%emt 0:2:33]} 25. Rac1 {[%emt 0:0:34]} Bf8 {[%emt 0:0:6]} 26. Bd5 {[%emt 0:3:59]} Qc7 {[%emt 0:0:50]} 27. Rc4 {[%emt 0:0:33]} Kg7 {[%emt 0:9:27]} 28. Rdc1 {[%emt 0:0:29]} b6 {[%emt 0:0:54]} 29. b4 {[%emt 0:6:18]} axb4 {[%emt 0:0:6]} 30. Rxb4 {[%emt 0:0:3]} Rd8 {[%emt 0:4:42]} 31. Qxb6 {[%emt 0:5:18]} Qxb6 {[%emt 0:1:12]} 32. Rxb6 {[%emt 0:0:6]} Nxa4 {[%emt 0:0:1]} 33. Rb7 {[%emt 0:0:7]} Nc3 {[%emt 0:0:4]} 34. Rxf7+ {[%emt 0:0:7]} Kh6 {[%emt 0:0:1]} 35. Kf1 {[%emt 0:1:15]} Bb4 {[%emt 0:3:10]} 36. Rb7 {[%emt 0:4:26]} Ba5 {[%emt 0:0:7]} 37. Ra7 {[%emt 0:0:17]} Bb4 {[%emt 0:0:15]} 38. Rb7 {[%emt 0:0:55]} Ba5 {[%emt 0:0:2]} 39. Ra1 {[%emt 0:1:51]} Nxd5 {[%emt 0:0:10]} 40. Rxa5 {[%emt 0:0:26]} Nc3 {[%emt 0:0:1]} 41. Raa7 {[%emt 0:30:33]} Nxe4 {[%emt 0:0:0]} 42. Rxh7+ {[%emt 0:0:0]} Kg5 {[%emt 0:0:0]} 43. Rhf7 {[%emt 0:0:0]} Rb8 {[%emt 0:0:0]} 44. g3 {[%emt 0:0:0]} d3 {[%emt 0:0:0]} 45. Kg2 {[%emt 0:0:0]} Rb2 {[%emt 0:0:0]} 46. h4+ {[%emt 0:0:0]} Kh5 {[%emt 0:0:12]} 47. Kh3 {[%emt 0:0:0]} 1-0

[Event "56th Biel Festival MTO 2023"]
[White "Samadov,Read"]
[Black "Huston,Gus"]
[Site "Biel"]
[Round "5.11"]
[Annotator "RC"]
[Result "1-0"]
[Date "2023.07.21"]
[WhiteElo "2482"]
[BlackElo "2341"]
[PlyCount "129"]
[TimeControl "60"]

1. d4 {[%emt 0:0:0]} d5 {[%emt 0:0:0]} 2. c4 {[%emt 0:0:0]} e6 {[%emt 0:0:0]} 3. Nf3 {[%emt 0:0:0]} Nf6 {[%emt 0:0:0]} 4. g3 {[%emt 0:0:0]} Bb4+ {[%emt 0:0:0]} 5. Bd2 {[%emt 0:0:0]} Be7 {[%emt 0:0:0]} 6. Bg2 {[%emt 0:0:0]} c6 {[%emt 0:0:0]} 7. O-O {[%emt 0:0:0]} O-O {[%emt 0:0:0]} 8. Bf4 {[%emt 0:0:0]} dxc4 {[%emt 0:0:0]} 9. Ne5 {[%emt 0:0:0]} Nd5 {[%emt 0:0:0]} 10. Nxc4 {[%emt 0:0:0]} Nxf4 {[%emt 0:0:0]} 11. gxf4 {[%emt 0:0:0]} Nd7 {[%emt 0:0:0]} 12. e3 {[%emt 0:3:24]} f6 {[%emt 0:0:0]} 13. Nc3 {[%emt 0:6:53]} Nb6 {[%emt 0:0:0]} 14. b3 {[%emt 0:6:26]} Nd5 {[%emt 0:3:51]} 15. Qc2 {[%emt 0:5:33]} Qe8 {[%emt 0:3:19]} 16. Ne4 {[%emt 0:7:3]} Qh5 {[%emt 0:0:45]} 17. Qd1 {[%emt 0:7:9]} Qh6 {[%emt 0:3:20]} 18. Kh1 {[%emt 0:8:29]} b6 {[%emt 0:7:23]} 19. Rg1 {[%emt 0:4:32]} Bb7 {[%emt 0:2:47]} 20. Rc1 {[%emt 0:11:24]} Rad8 {[%emt 0:0:31]} 21. Qf3 {[%emt 0:4:4]} g6 {[%emt 0:13:20]} 22. Qg3 {[%emt 0:2:27]} Ba8 {[%emt 0:2:24]} 23. a4 {[%emt 0:3:17]} Rd7 {[%emt 0:6:32]} 24. a5 {[%emt 0:7:57]} c5 {[%emt 0:16:35]} 25. dxc5 {[%emt 0:0:57]} bxc5 {[%emt 0:0:2]} 26. h3 {[%emt 0:4:28]} Nb4 {[%emt 0:3:54]} 27. Kh2 {[%emt 0:3:54]} Rfd8 {[%emt 0:2:47]} 28. Nc3 {[%emt 0:1:25]} Nd5 {[%emt 0:2:17]} 29. Bf3 {[%emt 0:1:58]} f5 {[%emt 0:14:40]} 30. Nxd5 {[%emt 0:1:32]} Bxd5 {[%emt 0:2:41]} 31. Ne5 {[%emt 0:2:38]} Bxf3 {[%emt 0:0:35]} 32. Qxf3 {[%emt 0:0:58]} Rd2 {[%emt 0:0:54]} 33. Rg2 {[%emt 0:3:18]} Bd6 {[%emt 0:3:49]} 34. Nc4 {[%emt 0:1:38]} Rd5 {[%emt 0:0:58]} 35. Rgg1 {[%emt 0:1:2]} Bc7 {[%emt 0:0:44]} 36. Kg2 {[%emt 0:1:24]} Qg7 {[%emt 0:3:12]} 37. h4 {[%emt 0:0:31]} Qe7 {[%emt 0:2:34]} 38. h5 {[%emt 0:0:53]} Kh8 {[%emt 0:2:22]} 39. hxg6 {[%emt 0:1:0]} Rg8 {[%emt 0:0:33]} 40. Kf1 {[%emt 0:0:32]} Rxg6 {[%emt 0:4:8]} 41. Rxg6 {[%emt 0:0:0]} hxg6 {[%emt 0:0:0]} 42. Kg2 {[%emt 0:0:0]} Kg8 {[%emt 0:0:0]} 43. Rh1 {[%emt 0:0:0]} Qg7 {[%emt 0:0:0]} 44. a6 {[%emt 0:0:0]} Kf7 {[%emt 0:0:0]} 45. Qh3 {[%emt 0:5:20]} Kg8 {[%emt 0:1:11]} 46. Qf3 {[%emt 0:4:9]} Kf8 {[%emt 0:7:35]} 47. Qg3 {[%emt 0:7:32]} Rd3 {[%emt 0:2:12]} 48. Rb1 {[%emt 0:3:20]} Qh6 {[%emt 0:11:35]} 49. Qf3 {[%emt 0:1:48]} Rd5 {[%emt 0:1:21]} 50. Rd1 {[%emt 0:2:20]} Qh5 {[%emt 0:1:6]} 51. Qxh5 {[%emt 0:3:30]} gxh5 {[%emt 0:0:2]} 52. Rh1 {[%emt 0:0:9]} Rd3 {[%emt 0:2:34]} 53. Rxh5 {[%emt 0:0:12]} Kg7 {[%emt 0:5:8]} 54. Rg5+ {[%emt 0:1:11]} Kf6 {[%emt 0:2:28]} 55. Rg8 {[%emt 0:0:38]} Rxb3 {[%emt 0:0:5]} 56. Rc8 {[%emt 0:4:30]} Bb6 {[%emt 0:0:50]} 57. Rb8 {[%emt 0:0:27]} Rb4 {[%emt 0:2:20]} 58. Nxb6 {[%emt 0:0:36]} Ke7 {[%emt 0:0:14]} 59. Nc8+ {[%emt 0:0:55]} Kd7 {[%emt 0:0:5]} 60. Rxb4 {[%emt 0:0:8]} cxb4 {[%emt 0:0:5]} 61. Nxa7 {[%emt 0:0:6]} b3 {[%emt 0:0:6]} 62. Nb5 {[%emt 0:0:4]} b2 {[%emt 0:0:7]} 63. Nc3 {[%emt 0:0:19]} Kc6 {[%emt 0:0:4]} 64. Kf3 {[%emt 0:0:4]} Kb6 {[%emt 0:0:4]} 65. Na4+ {[%emt 0:0:4]} 1-0